fUST/lending_fUST_20241105
["ID","MTS","AMOUNT","RATE_DAILY","PERIOD"]
[341328934,1730809147507,1580.050874,0.00019848,2]
[341328935,1730809244827,169.238879,0.00019523,2]
[341328936,1730809337471,1983.02213,0.00019823,2]
[341328937,1730809357617,416.970749,0.00019831,2]
[341328988,1730809534214,1858.078467,0.00019808,2]
[341328989,1730809536114,-217.138519,0.00020447,2]
[341328990,1730809536138,-1580.050874,0.00020533,2]
[341328991,1730809536159,-170.23715504,0.00020728,2]
[341328992,1730809536186,-171.46197,0.0002075,2]
[341328993,1730809536208,-171.46197,0.00020763,2]
[341328994,1730809536233,-171.46197,0.00020776,2]
[341328995,1730809536257,-171.46197,0.00020789,2]
[341328996,1730809536280,-171.46197,0.00020802,2]
[341328997,1730809536303,-171.46197,0.00020815,2]
[341328998,1730809536326,-299.73398583,0.00020824,2]
[341328999,1730809536355,-1872.68864773,0.00020824,2]
[341329000,1730809582191,24900.0,0.00019848,2]
[341329003,1730809629085,-2310.67096698,0.00020728,2]
[341329004,1730809629109,-171.46197,0.00020828,2]
[341329005,1730809629132,-171.46197,0.00020841,2]
[341329006,1730809629154,-300.0,0.00020849,2]
[341329007,1730809629177,-300.0,0.00020849,2]
[341329008,1730809629204,-430.14142102,0.0002085,2]
[341329009,1730809629227,-329.09050234,0.0002085,2]
[341329010,1730809629248,-440.14330192,0.0002085,2]
[341329011,1730809629271,-238.64580686,0.0002085,2]
[341329012,1730809629292,-500.0,0.0002085,2]
[341329013,1730809629328,-187.878336,0.00020851,2]
[341329014,1730809629352,-949.54202986,0.00020851,2]
[341329015,1730809633119,-944.59655858,0.00020851,2]
[341329016,1730809643101,-1208.02205469,0.00020754,2]
[341329019,1730809711057,2106.440165,0.00019867,2]
[341329022,1730809764088,-1803.69206668,0.00020552,2]
[341329023,1730809767949,195.658217,0.00019852,2]
[341329038,1730809832495,-302.74809832,0.00020552,2]
[341329039,1730809832505,-300.0,0.0002085,2]
[341329040,1730809832514,-300.0,0.0002085,2]
[341329041,1730809832523,-500.0,0.00020853,2]
[341329042,1730809832533,-171.46197,0.00020854,2]
[341329043,1730809832542,-1005.32382384,0.00020909,2]
[341329044,1730809832552,-2106.440165,0.00021237,2]
[341329045,1730809832561,-1595.45406736,0.00021288,2]
[341329046,1730809832572,-1000.0000009,0.00021408,2]
[341329047,1730809832582,-441.9437573,0.00021409,2]
[341329048,1730809832592,-343.19839135,0.00021817,2]
[341329049,1730809832601,-29281.72403142,0.00021916,2]
[341329050,1730809832611,-187.878336,0.00021917,2]
[341329051,1730809832621,-6710.34,0.00021917,2]
[341329052,1730809832636,-6710.34,0.00021917,2]
[341329053,1730809832646,-166.666666,0.00021918,2]
[341329054,1730809832657,-150.01,0.00021999,2]
[341329055,1730809832668,-1095.81726625,0.00021999,2]
[341329056,1730809832678,-10044.74000673,0.00022,30]
[341329057,1730809832689,-1345.15173252,0.00022,2]
[341329058,1730809832698,-283.62979802,0.00022,2]
[341329059,1730809832707,-166.666666,0.00022431,2]
[341329060,1730809832716,-343.19839133,0.0002261,2]
[341329061,1730809832725,-420.0,0.00022684,2]
[341329062,1730809832735,-420.0,0.00022935,2]
[341329063,1730809832744,-166.666666,0.00022944,2]
[341329064,1730809832753,-343.19839133,0.00023404,2]
[341329065,1730809832763,-166.666666,0.00023456,2]
[341329066,1730809832772,-890.65,0.000239,2]
[341329067,1730809832781,-166.666666,0.00023969,2]
[341329068,1730809832794,-343.19839133,0.00024197,2]
[341329069,1730809832803,-301.65240056,0.00024325,2]
[341329070,1730809832813,-500.0,0.00024325,2]
[341329071,1730809832822,-500.0,0.0002435,2]
[341329072,1730809832831,-501.46681774,0.0002435,2]
[341329073,1730809832841,-160.63502731,0.0002444,2]
[341329074,1730809832850,-500.0,0.0002444,2]
[341329075,1730809832860,-500.0,0.0002444,2]
[341329076,1730809832869,-6710.34,0.00024479,2]
[341329077,1730809832886,-501.08600131,0.0002448,2]
[341329078,1730809832897,-500.79655364,0.0002448,2]
[341329079,1730809832908,-500.0,0.0002448,2]
[341329080,1730809832917,-500.0,0.0002448,2]
[341329081,1730809832926,-166.666666,0.00024482,2]
[341329082,1730809832936,-161.7190428,0.00024658,4]
[341329083,1730809832945,-587.0,0.00024679,2]
[341329084,1730809832955,-158.347293,0.0002474,2]
[341329085,1730809832964,-153.0,0.0002474,2]
[341329086,1730809832973,-866.44,0.00024989,10]
[341329087,1730809832983,-1495.74,0.00024989,10]
[341329088,1730809832992,-186.56,0.00024989,3]
[341329089,1730809833001,-1246.45,0.00024989,10]
[341329090,1730809833011,-343.19839133,0.0002499,2]
[341329091,1730809833021,-6710.34,0.00024998,2]
[341329092,1730809833030,-6710.34,0.00024999,2]
[341329093,1730809833040,-17435.88899306,0.00025,2]
[341329094,1730809833050,-1036.98353211,0.00025,2]
[341329095,1730809833059,-203.15887923,0.00025,2]
[341329096,1730809833069,-509.2410157,0.00025,2]
[341329097,1730809833079,-165.273796,0.00025,2]
[341329098,1730809833088,-10364.0,0.00025,2]
[341329099,1730809833098,-346.22919757,0.00025,2]
[341329100,1730809833107,-826.6851742,0.00025,2]
[341329101,1730809833117,-151.0,0.00025,7]
[341329102,1730809833128,-151.0,0.00025,7]
[341329103,1730809833137,-151.0,0.00025,7]
[341329104,1730809833147,-151.0,0.00025,7]
[341329105,1730809833156,-151.0,0.00025,7]
[341329106,1730809833166,-151.0,0.00025,7]
[341329107,1730809833176,-232.619038,0.00025,7]
[341329108,1730809833186,-156.11345,0.00025,7]
[341329109,1730809833197,-156.11345,0.00025,7]
[341329110,1730809833212,-151.0,0.00025,7]
[341329111,1730809833222,-262.29033,0.00025,7]
[341329112,1730809833233,-262.29033,0.00025,7]
[341329113,1730809833244,-151.0,0.00025,7]
[341329114,1730809833255,-151.0,0.00025,7]
[341329115,1730809833266,-176.144701,0.00025,7]
[341329116,1730809833275,-305.003263,0.00025,7]
[341329117,1730809833291,-176.144701,0.00025,7]
[341329118,1730809833301,-151.0,0.00025,7]
[341329119,1730809833311,-305.003263,0.00025,7]
[341329120,1730809833320,-151.0,0.00025,7]
[341329121,1730809833330,-156.356574,0.00025,7]
[341329122,1730809833339,-151.0,0.00025,7]
[341329123,1730809833349,-151.0,0.00025,7]
[341329124,1730809833358,-159.995038,0.00025,7]
[341329125,1730809833368,-151.0,0.00025,7]
[341329126,1730809833382,-151.0,0.00025,7]
[341329127,1730809833392,-294.616489,0.00025,7]
[341329128,1730809833401,-294.616489,0.00025,7]
[341329129,1730809833411,-151.0,0.00025,3]
[341329130,1730809833420,-151.0,0.00025,7]
[341329131,1730809833429,-151.0,0.00025,7]
[341329132,1730809833439,-151.0,0.00025,7]
[341329133,1730809833449,-152.926252,0.00025,7]
[341329134,1730809833536,-151.382486,0.00025,7]
[341329135,1730809833549,-151.0,0.00025,7]
[341329136,1730809833559,-151.0,0.00025,7]
[341329137,1730809833569,-151.0,0.00025,7]
[341329138,1730809833579,-320.738694,0.00025,7]
[341329139,1730809833588,-320.738694,0.00025,7]
[341329140,1730809833598,-157.86687,0.00025,7]
[341329141,1730809833608,-6710.34,0.00025089,2]
[341329142,1730809833618,-153.655448,0.0002509,7]
[341329143,1730809833630,-128092.09816081,0.0002509,2]
[341329144,1730809833639,-151.0,0.0002509,7]
[341329145,1730809833649,-151.0,0.0002509,7]
[341329146,1730809833658,-151.0,0.0002509,7]
[341329147,1730809833667,-151.0,0.0002509,7]
[341329148,1730809833687,-151.0,0.0002509,7]
[341329149,1730809833701,-320.738694,0.0002509,7]
[341329150,1730809833711,-320.738694,0.0002509,7]
[341329151,1730809833722,-257.619,0.00025123,2]
[341329152,1730809833732,-587.0,0.00025229,2]
[341329153,1730809833743,-153.0,0.00025562,2]
[341329154,1730809833753,-465.4688816,0.00025695,2]
[341329155,1730809833764,-505.75215091,0.0002572,2]
[341329156,1730809833774,-1000.0,0.0002581,2]
[341329157,1730809833785,-660.13153452,0.0002581,2]
[341329158,1730809833796,-1000.0,0.0002585,2]
[341329159,1730809833806,-310.0,0.0002587,15]
[341329160,1730809833816,-152.079528,0.00025953,7]
[341329161,1730809833827,-500.0,0.00026,2]
[341329162,1730809833837,-839.52975851,0.00026144,2]
[341329163,1730809833847,-151.0,0.00026358,7]
[341329164,1730809833857,-151.0,0.00026358,7]
[341329165,1730809833867,-151.0,0.00026358,7]
[341329166,1730809833879,-151.0,0.00026358,7]
[341329167,1730809833888,-151.0,0.00026358,7]
[341329168,1730809833899,-214.139708,0.00026358,7]
[341329169,1730809833908,-214.139708,0.00026358,7]
[341329170,1730809833918,-151.0,0.00026358,7]
[341329171,1730809833928,-176.144701,0.00026358,7]
[341329172,1730809833938,-176.144701,0.00026358,7]
[341329173,1730809833948,-151.0,0.00026358,7]
[341329174,1730809833959,-151.0,0.00026358,7]
[341329175,1730809833969,-153.872684,0.00026358,7]
[341329176,1730809833979,-151.0,0.00026358,7]
[341329177,1730809833989,-151.0,0.00026358,7]
[341329178,1730809833999,-294.616489,0.00026358,7]
[341329179,1730809834010,-294.616489,0.00026358,7]
[341329180,1730809834020,-151.0,0.00026358,3]
[341329181,1730809834030,-178.918573,0.00026358,7]
[341329182,1730809834040,-373.12,0.00026359,3]
[341329183,1730809834049,-168.422,0.00026426,13]
[341329184,1730809834059,-232.619038,0.00026846,7]
[341329185,1730809834069,-305.003263,0.00026846,7]
[341329186,1730809834079,-305.003263,0.00026846,7]
[341329187,1730809834089,-708.96304213,0.00026849,2]
[341329188,1730809834100,-823.0,0.00026849,2]
[341329189,1730809834110,-217.138519,0.00026921,2]
[341329190,1730809834121,-6710.34,0.00026935,2]
[341329191,1730809834136,-151.0,0.00026935,7]
[341329192,1730809834147,-151.0,0.00026935,7]
[341329193,1730809834157,-151.0,0.00026935,7]
[341329194,1730809834167,-151.0,0.00026935,7]
[341329195,1730809834177,-320.738694,0.00026935,7]
[341329196,1730809834187,-320.738694,0.00026935,7]
[341329197,1730809834197,-151.0,0.00026936,7]
[341329198,1730809834207,-151.0,0.00026936,7]
[341329199,1730809834220,-151.539875,0.00026936,7]
[341329200,1730809834229,-151.0,0.00026936,7]
[341329201,1730809834238,-156.11345,0.00026936,7]
[341329202,1730809834248,-156.11345,0.00026936,7]
[341329203,1730809834258,-262.29033,0.00026936,7]
[341329204,1730809834270,-262.29033,0.00026936,7]
[341329205,1730809834280,-151.0,0.00026936,7]
[341329206,1730809834290,-520.83333333,0.00027,2]
[341329207,1730809834307,-303.3217478,0.00027205,2]
[341329208,1730809834317,-151.0,0.00027397,2]
[341329209,1730809834327,-483.72648793,0.00027452,2]
[341329210,1730809834338,-162.918435,0.000277,14]
[341329211,1730809834348,-823.0,0.00027751,2]
[341329212,1730809834358,-150.112236,0.000278,16]
[341329213,1730809834369,-150.112233,0.000279,11]
[341329214,1730809834382,-2394.0,0.00027904,2]
[341329215,1730809834393,-150.0,0.00027904,2]
[341329216,1730809834403,-151.0,0.00027904,7]
[341329217,1730809834413,-1328.43994134,0.0002799,2]
[341329218,1730809834423,-6710.34,0.00027997,2]
[341329219,1730809834433,-151.0,0.00027998,7]
[341329220,1730809834443,-151.0,0.00027999,7]
[341329221,1730809834453,-232.619038,0.00027999,7]
[341329222,1730809834463,-214.139708,0.00027999,7]
[341329223,1730809834473,-232.619038,0.00027999,7]
[341329224,1730809834483,-214.139708,0.00027999,7]
[341329225,1730809834493,-151.0,0.00027999,7]
[341329226,1730809834503,-176.144701,0.00027999,7]
[341329227,1730809834513,-305.003263,0.00027999,7]
[341329228,1730809834522,-176.144701,0.00027999,7]
[341329229,1730809834532,-151.0,0.00027999,7]
[341329230,1730809834542,-305.003263,0.00027999,7]
[341329231,1730809834552,-151.0,0.00027999,7]
[341329232,1730809834562,-151.0,0.00027999,7]
[341329233,1730809834572,-151.0,0.00027999,7]
[341329234,1730809834583,-294.616489,0.00027999,7]
[341329235,1730809834594,-294.616489,0.00027999,7]
[341329236,1730809834605,-151.0,0.00027999,3]
[341329237,1730809834615,-6245.92339485,0.00028,2]
[341329238,1730809834627,-500.0,0.00028,2]
[341329239,1730809834637,-151.0,0.00028,7]
[341329240,1730809834647,-222.925512,0.00028,7]
[341329241,1730809834657,-151.0,0.00028,7]
[341329242,1730809834667,-151.0,0.00028,7]
[341329243,1730809834677,-156.11345,0.00028,7]
[341329244,1730809834687,-156.11345,0.00028,7]
[341329245,1730809834697,-262.29033,0.00028,7]
[341329246,1730809834707,-262.29033,0.00028,7]
[341329247,1730809834717,-151.0,0.00028,7]
[341329248,1730809834727,-151.0,0.00028,7]
[341329249,1730809834736,-151.0,0.00028,7]
[341329250,1730809834746,-320.738694,0.00028,7]
[341329251,1730809834756,-320.738694,0.00028,7]
[341329252,1730809834766,-366.55232,0.00028027,30]
[341329253,1730809834776,-150.112233,0.000281,20]
[341329254,1730809834785,-150.112233,0.000282,20]
[341329255,1730809834795,-150.112233,0.000282,11]
[341329256,1730809834805,-1500.0,0.00028315,2]
[341329257,1730809834815,-500.0,0.00028318,5]
[341329258,1730809834824,-1500.0,0.00028355,2]
[341329259,1730809834836,-150.112233,0.000284,10]
[341329260,1730809834846,-500.0,0.00028446,5]
[341329261,1730809834856,-500.0,0.00028446,5]
[341329262,1730809834867,-150.112233,0.000285,16]
[341329263,1730809834879,-150.112233,0.000286,17]
[341329264,1730809834891,-178.34918,0.000286,20]
[341329265,1730809834902,-248.93589586,0.00028673,5]
[341329266,1730809834913,-500.0,0.00028673,5]
[341329267,1730809834924,-6710.34,0.00028698,2]
[341329268,1730809834934,-151.0,0.00028699,7]
[341329269,1730809834944,-151.0,0.00028699,7]
[341329270,1730809834954,-232.619038,0.00028699,7]
[341329271,1730809834964,-214.139708,0.00028699,7]
[341329272,1730809834975,-232.619038,0.00028699,7]
[341329273,1730809834985,-214.139708,0.00028699,7]
[341329274,1730809834995,-151.0,0.00028699,7]
[341329275,1730809835004,-176.144701,0.00028699,7]
[341329276,1730809835015,-305.003263,0.00028699,7]
[341329277,1730809835025,-176.144701,0.00028699,7]
[341329278,1730809835035,-151.0,0.00028699,7]
[341329279,1730809835045,-305.003263,0.00028699,7]
[341329280,1730809835054,-151.0,0.00028699,7]
[341329281,1730809835064,-6710.34,0.00028699,2]
[341329282,1730809835074,-6710.34,0.00028699,2]
[341329283,1730809835084,-151.0,0.00028699,7]
[341329284,1730809835094,-151.0,0.00028699,7]
[341329285,1730809835104,-294.616489,0.00028699,7]
[341329286,1730809835114,-294.616489,0.00028699,7]
[341329287,1730809835125,-152.454606,0.00028699,3]
[341329288,1730809835135,-151.0,0.00028699,7]
[341329289,1730809835146,-151.0,0.00028699,7]
[341329290,1730809835156,-208.252998,0.00028699,7]
[341329291,1730809835166,-320.738694,0.00028699,7]
[341329292,1730809835250,-320.738694,0.00028699,7]
[341329293,1730809835262,-19991.00922321,0.000287,2]
[341329294,1730809835281,-1000.0,0.000287,2]
[341329295,1730809835295,-16650.86368923,0.000287,2]
[341329296,1730809835306,-150.112238,0.000287,18]
[341329297,1730809835316,-150.112233,0.000287,17]
[341329298,1730809835325,-151.0,0.000287,7]
[341329299,1730809835335,-150.112233,0.000287,17]
[341329300,1730809835345,-151.0,0.000287,7]
[341329301,1730809835354,-151.0,0.000287,7]
[341329302,1730809835364,-151.0,0.000287,7]
[341329303,1730809835373,-151.0,0.000287,7]
[341329304,1730809835384,-151.0,0.000287,7]
[341329305,1730809835393,-232.619038,0.000287,7]
[341329306,1730809835403,-214.139708,0.000287,7]
[341329307,1730809835413,-232.619038,0.000287,7]
[341329308,1730809835422,-214.139708,0.000287,7]
[341329309,1730809835432,-156.11345,0.000287,7]
[341329310,1730809835442,-156.11345,0.000287,7]
[341329311,1730809835451,-262.29033,0.000287,7]
[341329312,1730809835461,-262.29033,0.000287,7]
[341329313,1730809835471,-176.144701,0.000287,7]
[341329314,1730809835480,-305.003263,0.000287,7]
[341329315,1730809835490,-176.144701,0.000287,7]
[341329316,1730809835499,-151.0,0.000287,7]
[341329317,1730809835509,-305.003263,0.000287,7]
[341329318,1730809835519,-151.0,0.000287,7]
[341329319,1730809835529,-151.0,0.000287,7]
[341329320,1730809835538,-154.269307,0.000287,7]
[341329321,1730809835547,-294.616489,0.000287,7]
[341329322,1730809835557,-294.616489,0.000287,7]
[341329323,1730809835567,-151.0,0.000287,7]
[341329324,1730809835576,-151.0,0.000287,7]
[341329325,1730809835586,-320.738694,0.000287,7]
[341329326,1730809835596,-320.738694,0.000287,7]
[341329327,1730809835605,-6710.34,0.00028707,2]
[341329328,1730809835615,-6710.34,0.00028708,2]
[341329329,1730809835625,-5739.60878477,0.00028708,2]
[341329332,1730809838851,-500.0,0.00021918,2]
[341329333,1730809838861,-500.0,0.00024658,2]
[341329334,1730809838871,-500.0,0.00024658,2]
[341329336,1730809838884,-500.0,0.00024658,2]
[341329337,1730809838893,-235.14868195,0.00024658,2]
[341329357,1730809846597,-264.85131805,0.00024658,2]
[341329358,1730809846607,-500.0,0.00024658,2]
[341329359,1730809846616,-500.0,0.00024658,2]
[341329360,1730809846626,-125.20635083,0.00024658,2]
[341329361,1730809974529,184.567741,0.00013973,2]
[341329362,1730810252586,301.01244189,0.00020185,2]
[341329363,1730810451460,520.83333333,0.00020185,2]
[341329364,1730810539282,286.3867378,0.00013973,2]
[341329365,1730810734133,-353.43163582,0.00020347,2]
[341329366,1730810734157,-99.33909914,0.00020447,2]
[341329367,1730810735274,-85.22864186,0.00020447,2]
[341329368,1730810735296,-693.81161196,0.0002136,2]
[341329369,1730810793444,-192.08641196,0.0002126,2]
[341329370,1730810793470,-400.67059904,0.0002136,2]
[341329371,1730810793495,-520.83333333,0.0002136,2]
[341329372,1730810793519,-1230.9714858,0.00021415,2]
[341329373,1730810793544,-160.530949,0.0002164,2]
[341329374,1730810793568,-158.657853,0.00021918,2]
[341329375,1730810793593,-208.485374,0.00021923,2]
[341329376,1730810793635,-1094.482211,0.00022045,2]
[341329377,1730810793676,-158.657853,0.00022431,2]
[341329378,1730810793712,-300.0,0.00022495,2]
[341329379,1730810793752,-5917.81207567,0.00022496,2]
[341329380,1730810793791,-545.58897029,0.00022551,2]
[341329381,1730810793825,-181.01644593,0.00022551,2]
[341329382,1730810793866,-253.56063655,0.00022551,2]
[341329383,1730810793903,-500.0,0.00022551,2]
[341329384,1730810793934,-204.18291674,0.00022551,2]
[341329385,1730810793967,-9095.46288469,0.00022552,2]
[341329386,1730810852170,-520.83333333,0.00021125,2]
[341329387,1730810852193,-300.0,0.00022551,2]
[341329388,1730810852216,-374.58249166,0.00022552,2]
[341329389,1730810853093,-7818.20109988,0.00022552,2]
[341329473,1730811063624,520.83333333,0.00020185,2]
[341329474,1730811137044,362.550506,0.00013973,2]
[341329475,1730811254587,158.6672855,0.00013973,2]
[341329476,1730811489170,4008.18168348,0.00017,2]
[341329478,1730811649051,-362.550506,0.00020447,2]
[341329479,1730811649080,-2423.999494,0.00020547,2]
[341329480,1730811655308,167.646288,0.00013973,2]
[341329481,1730811678289,520.83333333,0.00020185,2]
[341329482,1730811719550,162.858,0.000175,2]
[341329483,1730811720153,163.18,0.000182,7]
[341329484,1730811797910,16425.5922178,0.00019773,2]
[341329485,1730811880404,160.530949,0.00019444,2]
[341329486,1730811888179,3786.2878334,0.00019718,2]
[341329487,1730811932116,-427.99641835,0.000204,2]
[341329488,1730811946092,-364.19070956,0.000204,2]
[341329489,1730811974801,250.0,0.00019493,2]
[341329490,1730811985220,2852.665895,0.00019493,2]
[341329491,1730811985642,2852.665895,0.00020178,2]
[341329492,1730812024822,262.3808038,0.00019493,2]
[341329493,1730812029087,-188.18400904,0.00020391,2]
[341329494,1730812029112,-300.0,0.00020399,2]
[341329495,1730812029134,-300.0,0.00020399,2]
[341329496,1730812029160,-5144.45574041,0.000204,2]
[341329497,1730812029183,-520.83333333,0.000204,2]
[341329498,1730812029207,-500.0,0.00020491,2]
[341329499,1730812029229,-155.09404728,0.00020491,2]
[341329500,1730812029254,-500.0,0.00020491,2]
[341329501,1730812029278,-430.16239097,0.00020491,2]
[341329502,1730812035125,486.9514183,0.00020055,2]
[341329503,1730812039101,-69.83760903,0.00020491,2]
[341329504,1730812039125,-500.0,0.00020491,2]
[341329505,1730812039148,-500.0,0.00020491,2]
[341329506,1730812039170,-259.6204482,0.00020491,2]
[341329507,1730812039192,-500.0,0.00020491,2]
[341329508,1730812039217,-358.014,0.00020491,2]
[341329509,1730812039239,-256.04403847,0.00020491,2]
[341329510,1730812039262,-500.0,0.00020491,2]
[341329511,1730812039283,-1899.25178374,0.00020492,2]
[341329512,1730812040088,-1368.12756961,0.00020492,2]
[341329513,1730812046108,-520.83333333,0.00020357,2]
[341329514,1730812046130,-343.62082722,0.00020492,2]
[341329515,1730812047123,-365.33351122,0.00020492,2]
[341329517,1730812140296,335.108638,0.00013973,2]
[341329518,1730812146091,-3000.0,0.00020206,2]
[341329519,1730812147078,-520.83333333,0.00020314,2]
[341329520,1730812153265,521.0277057,0.00019727,2]
[341329556,1730812231957,-335.108638,0.00020447,2]
[341329558,1730812231967,-300.0,0.00020491,2]
[341329560,1730812231976,-300.0,0.00020491,2]
[341329562,1730812231987,-6023.16206091,0.00020492,2]
[341329927,1730812238180,-3951.88423486,0.00020492,2]
[341329989,1730812240077,-10948.62001244,0.00020492,2]
[341329990,1730812240087,-500.86409177,0.000205,2]
[341329991,1730812240096,-441.959589,0.0002052,2]
[341329992,1730812240193,-2852.665895,0.00020863,2]
[341329993,1730812240203,-154.48937784,0.00020865,2]
[341329994,1730812240213,-162.851,0.000209,2]
[341329995,1730812240222,-158.77864073,0.00020917,2]
[341329996,1730812240232,-7843.7307495,0.00021,2]
[341329997,1730812240241,-2259.78135797,0.00021017,2]
[341329998,1730812240253,-200.934451,0.00021191,2]
[341329999,1730812240264,-157.627262,0.00021387,2]
[341330000,1730812240274,-306.8450153,0.00021553,2]
[341330001,1730812240283,-150.0,0.00021872,2]
[341330002,1730812240296,-171.13184353,0.00021916,2]
[341330003,1730812240307,-161.13913937,0.00021917,2]
[341330004,1730812240316,-5000.0,0.00021917,2]
[341330005,1730812240325,-5000.0,0.00021917,2]
[341330006,1730812240334,-163.332811,0.00021918,2]
[341330007,1730812240344,-150.59753989,0.00022169,2]
[341330008,1730812240353,-420.0,0.00022301,2]
[341330009,1730812240363,-5000.0,0.000224,2]
[341330010,1730812240372,-500.0,0.000224,2]
[341330011,1730812240381,-500.0,0.000224,2]
[341330012,1730812240390,-500.0,0.000224,2]
[341330013,1730812240400,-420.0,0.0002254,2]
[341330014,1730812240410,-163.332811,0.00022559,2]
[341330015,1730812240419,-3693.22941266,0.00022948,2]
[341330052,1730812243726,-1306.77058734,0.00022948,2]
[341330054,1730812243736,-501.18955706,0.00022975,2]
[341330056,1730812243745,-322.48726873,0.00022975,2]
[341330058,1730812243754,-500.0,0.00022975,2]
[341330060,1730812243765,-201.0,0.00023,2]
[341330062,1730812243775,-163.332811,0.000232,2]
[341330065,1730812243785,-1000.0,0.0002377,2]
[341330067,1730812243798,-163.332811,0.00023841,2]
[341330069,1730812243809,-587.0,0.00024271,2]
[341330071,1730812243819,-12.51536521,0.00024345,2]
[341330077,1730812243874,-0.00632366,0.00024345,2]
[341330083,1730812243903,1500.0,0.0002401,120]
[341330217,1730812342680,-162.881,0.0002786,120]
[341331758,1730812779261,520.83333333,0.00020185,2]
[341331864,1730812785575,193.21425,0.00019574,2]
[341332882,1730812864484,309.980088,0.00013973,2]
[341333111,1730812875535,233.9269085,0.00028027,30]
[341333602,1730812935886,3.1920915,0.00028027,30]
[341333603,1730813041836,2000.0,0.00033576,120]
[341333606,1730813148138,-309.980088,0.00020447,2]
[341333607,1730813148162,-164.999738,0.00021918,2]
[341333608,1730813148185,-526.683625,0.00021932,2]
[341333609,1730813148208,-878.98645865,0.00022091,2]
[341333610,1730813149096,-2121.01354135,0.00022091,2]
[341333611,1730813149119,-393.5541071,0.00022258,2]
[341333612,1730813149142,-520.83333333,0.00022477,2]
[341333613,1730813149165,-123.73777793,0.00022572,2]
[341333614,1730813227185,-520.83333333,0.00021904,2]
[341333615,1730813227207,-1774.58006884,0.00022455,2]
[341333616,1730813227228,-36.79317107,0.00022572,2]
[341333617,1730813227254,-526.683625,0.00022617,2]
[341333618,1730813227275,-526.683625,0.00023302,2]
[341333619,1730813227296,-170.23715504,0.00023455,2]
[341333620,1730813227318,-300.0,0.00023555,2]
[341333621,1730813227344,-300.0,0.00023555,2]
[341333622,1730813227365,-1894.13858844,0.00023556,2]
[341333623,1730813227388,-585.95605986,0.00023556,2]
[341333624,1730813232093,-2153.73265061,0.00023556,2]
[341333625,1730813248095,-1480.38655334,0.00023556,2]
[341333626,1730813253108,-779.92473619,0.00023556,2]
[341333627,1730813253131,-156.65758258,0.00023556,2]
[341333629,1730813316235,308.99467629,0.000176,2]
[341333630,1730813356147,-399.72423577,0.00020377,2]
[341333631,1730813364728,217.138536,0.00013973,2]
[341333632,1730813391083,520.83333333,0.00020185,2]
[341333677,1730813440125,-812.00251591,0.00022,3]
[341333678,1730813440135,-300.0,0.00023012,2]
[341333679,1730813440145,-447.68461929,0.00023013,2]
[341333680,1730813440157,-408.4923263,0.00023013,2]
[341333878,1730813930066,278.982079,0.00013973,2]
[341333879,1730814002873,520.83333333,0.00020185,2]
[341333910,1730814314523,416.305707,0.00020051,2]
[341333924,1730814335144,-195.658217,0.00020308,2]
[341333925,1730814335167,-353.43163582,0.00020338,2]
[341333926,1730814335198,-175.323041,0.00020438,2]
[341333927,1730814335227,-278.982079,0.00020447,2]
[341333928,1730814335249,-13.65513159,0.00020465,2]
[341333929,1730814337222,-753.34938933,0.00020465,2]